[Event "GER-ch Youth-ODJM 2022"]
[Site "Willingen"]
[Date "2022.06.05"]
[Round "2.12"]
[White "Kroemer, Emanuel"]
[Black "Borgert, Alexander"]
[Result "1-0"]
[ECO "D05"]
[WhiteElo "1415"]
[BlackElo "1468"]
[Annotator "NA RC COMBH"]
[PlyCount "81"]
[EventDate "2022.06.05"]
[EventType "swiss"]
[EventRounds "9"]
[EventCountry "GER"]
[SourceTitle "playchess.com"]
[Source "ChessBase"]
[SourceQuality "1"]
[TimeControl "40/4500+30:900+30"]

1. d4 {[%emt 0:00:00]} d5 {[%emt 0:00:00]} 2. Nf3 {[%emt 0:00:00]} Nf6 {[%emt 0:00:00]} 3. e3 {[%emt 0:00:00]} e6 {[%emt 0:00:00]} 4. Bd3 {[%emt 0:00:00]} c5 {[%emt 0:00:00]} 5. b3 {[%emt 0:00:00]} Nc6 {[%emt 0:00:00]} 6. Bb2 {[%emt 0:00:00]} cxd4 {[%emt 0:00:00]} 7. exd4 {[%emt 0:00:00]} Bd6 {[%emt 0:00:00]} 8. O-O {[%emt 0:00:00]} O-O {[%emt 0:00:00]} 9. Nbd2 {[%emt 0:00:00]} Re8 {[%emt 0:00:00]} 10. Ne5 {[%emt 0:00:00]} Qc7 {[%emt 0:00:00]} 11. f4 {[%emt 0:00:00]} Bxe5 {[%emt 0:00:00]} 12. fxe5 {[%emt 0:00:00]} Nd7 {[%emt 0:00:00]} 13. Rf4 {[%emt 0:00:00]} Nf8 {[%emt 0:00:00]} 14. Rh4 {[%emt 0:06:52]} Ng6 {[%emt 0:00:00]} 15. Qh5 {[%emt 0:00:46]} h6 {[%emt 0:00:00]} 16. Bxg6 {[%emt 0:02:37]} fxg6 {[%emt 0:00:00]} 17. Qxg6 {[%emt 0:00:11]} Qf7 {[%emt 0:00:00]} 18. Rxh6 {[%emt 0:03:34]} Qxg6 {[%emt 0:00:00]} 19. Rxg6 {[%emt 0:00:06]} Nb4 {[%emt 0:00:00]} 20. c4 {[%emt 0:02:16]} dxc4 {[%emt 0:00:00]} 21. Nxc4 {[%emt 0:00:58]} Nd3 {[%emt 0:00:00]} 22. Ba3 {[%emt 0:01:47]} Rd8 {[%emt 0:00:43]} 23. Nd6 {[%emt 0:01:04]} Nf4 {[%emt 0:00:43]} 24. Rg4 {[%emt 0:00:40]} Nd5 {[%emt 0:01:14]} 25. Rc1 {[%emt 0:01:38]} a5 {[%emt 0:01:25]} 26. h4 {[%emt 0:01:37]} a4 {[%emt 0:00:43]} 27. b4 {[%emt 0:06:19]} b6 {[%emt 0:01:31]} 28. Kf2 {[%emt 0:01:47]} Bd7 {[%emt 0:01:01]} 29. h5 {[%emt 0:05:38]} Rf8+ {[%emt 0:00:25]} 30. Kg3 {[%emt 0:01:02]} Ne3 {[%emt 0:00:30]} 31. Rf4 {[%emt 0:05:06]} Rxf4 {[%emt 0:00:52]} 32. Kxf4 {[%emt 0:00:06]} Nxg2+ {[%emt 0:00:05]} 33. Kf3 {[%emt 0:04:46]} Nh4+ {[%emt 0:01:14]} 34. Kg3 {[%emt 0:00:53]} Nf5+ {[%emt 0:00:10]} 35. Nxf5 {[%emt 0:00:55]} exf5 {[%emt 0:00:07]} 36. d5 {[%emt 0:04:22]} Rc8 {[%emt 0:00:47]} 37. Kf4 {[%emt 0:05:40]} Rxc1 {[%emt 0:01:31]} 38. Bxc1 {[%emt 0:00:01]} Kf8 {[%emt 0:00:15]} 39. e6 {[%emt 0:01:22]} Bc8 {[%emt 0:01:39]} 40. Kxf5 {[%emt 0:02:21]} Ke7 {[%emt 0:00:13]} 41. Ke4 1-0

[Event "GER-ch Youth-ODJM 2022"]
[Site "Willingen"]
[Date "2022.06.05"]
[Round "2.13"]
[White "Garbuz, Nicole"]
[Black "Gerlach, Felix"]
[Result "0-1"]
[ECO "C54"]
[WhiteElo "1824"]
[BlackElo "2072"]
[Annotator "TA"]
[PlyCount "34"]
[EventDate "2022.06.05"]
[EventType "swiss"]
[EventRounds "9"]
[EventCountry "GER"]
[SourceTitle "playchess.com"]
[Source "ChessBase"]
[SourceQuality "1"]
[TimeControl "40/4500+30:900+30"]

{[%evp 12,34,18,2,12,9,0,0,0,-22,-12,14,20,-42,57,55,91,-109,-84,-343,-315,-673,-647,-596,-538]} 1. e4 {[%emt 0:00:00]} e5 {[%emt 0:00:00]} 2. Nf3 {[%emt 0:00:00]} Nc6 {[%emt 0:00:00]} 3. Bc4 {[%emt 0:00:00]} Bc5 {[%emt 0:00:00]} 4. c3 {[%emt 0:00:00]} Nf6 {[%emt 0:00:00]} 5. d3 {[%emt 0:00:00]} d6 {[%emt 0:00:00]} 6. Bb3 {[%emt 0:00:00]} a6 {[%emt 0:00:00]} 7. Nbd2 {[%emt 0:00:00]} h6 {[%emt 0:00:00] C54: Giuoco Piano: 4 c3 Nf6, main lines with 5 d4 and 5 d3.} 8. O-O {[%emt 0:00:00]} Ba7 {[%emt 0:00:00]} 9. h3 {[%emt 0:00:00]} g5 {[%emt 0:00:00] The position is equal.} 10. Nc4 {[%emt 0:09:39]} (10. d4 $5) 10... g4 {[%emt 0:01:51]} 11. hxg4 {[%emt 0:00:07]} Bxg4 {[%emt 0:11:19]} 12. Ne3 {[%emt 0:05:37] [#]} (12. Be3 $11) 12... Bh5 $146 {[%emt 0:03:05]} (12... Bxe3 $15 13. fxe3 (13. Bxe3 Qd7 $11) 13... Rg8) ({Predecessor:} 12... h5 13. Nf5 Qd7 14. Bg5 Nh7 15. Bh4 Rg8 16. d4 Ng5 17. Nxg5 Bxd1 18. Bxf7+ Kf8 {1-0 (29) Indjic,A (2623)-Abdusattorov,N (2633) Warsaw 2021}) 13. Nf5 $14 {[%emt 0:01:24]} Rh7 {[%emt 0:24:00] Prevents Ng7+.} 14. Bxh6 $2 {[%emt 0:08:58] [#]} (14. Ba4 $16 {keeps the pressure on.}) 14... Kd7 $1 $17 {[%emt 0:03:01] aiming for ...Qh8.} 15. Re1 $2 {[%emt 0:36:26][%mdl 8192]} (15. Be3 $17) 15... Qh8 $19 {[%emt 0:04:31] Strongly threatening ...Bg4.} 16. Qd2 $2 {[%emt 0:06:19]} (16. d4) 16... Bxf3 {[%emt 0:03:10]} 17. gxf3 {[%emt 0:00:05]} Ng8 {[%emt 0:01:20] Weighted Error Value: White=0.98/Black=0.11 (very precise)} 0-1

[Event "GER-ch Youth-ODJM 2022"]
[Site "Willingen"]
[Date "2022.06.05"]
[Round "2.14"]
[White "Schmitt, Daniel"]
[Black "Fock, Amina"]
[Result "1-0"]
[ECO "B52"]
[WhiteElo "2141"]
[BlackElo "1790"]
[Annotator "TA"]
[PlyCount "47"]
[EventDate "2022.06.05"]
[EventType "swiss"]
[EventRounds "9"]
[EventCountry "GER"]
[SourceTitle "playchess.com"]
[Source "ChessBase"]
[SourceQuality "1"]
[TimeControl "40/4500+30:900+30"]

{[%evp 13,47,17,25,11,79,73,80,82,94,98,113,98,139,128,196,141,143,145,165,156,166,175,173,162,177,154,156,156,156,156,170,166,163,157,269,262]} 1. e4 {[%emt 0:00:00]} c5 {[%emt 0:00:00]} 2. Nf3 {[%emt 0:00:00]} d6 {[%emt 0:00:00]} 3. Bb5+ {[%emt 0:00:00]} Bd7 {[%emt 0:00:00]} 4. Bxd7+ {[%emt 0:00:00]} Qxd7 {[%emt 0:00:00]} 5. O-O {[%emt 0:00:00]} Nc6 {[%emt 0:00:00]} 6. c3 {[%emt 0:00:00]} Nf6 {[%emt 0:00:00]} 7. Qe2 {[%emt 0:00:00]} e5 {[%emt 0:00:00]} 8. Rd1 {[%emt 0:00:00] B52: Sicilian: Moscow Variation with 3...Bd7.} Qc7 {[%emt 0:00:10]} (8... Be7 $11) 9. Na3 {[%emt 0:00:00]} a6 {[%emt 0:01:16]} 10. d4 {[%emt 0:00:00] [#] White is better.} Nd7 $146 {[%emt 0:06:21]} ({Predecessor:} 10... Be7 11. d5 Nb8 12. Nc4 Nbd7 13. a4 b6 14. h3 O-O 15. Nh2 b5 16. Ne3 c4 {0-1 (39) Braun,M (2071)-Ruzicka,V (2043) Kouty nad Desnou 2009}) 11. Nc4 {[%emt 0:00:00]} Be7 {[%emt 0:13:29]} 12. Ne3 {[%emt 0:02:28]} b5 {[%emt 0:03:20]} 13. a4 {[%emt 0:07:21]} b4 {[%emt 0:05:27]} (13... O-O $16 {keeps fighting.} 14. axb5 axb5 15. Rxa8 Rxa8) 14. Nd5 {[%emt 0:04:36]} (14. Nf5 $18) 14... Qb7 $16 {[%emt 0:06:30]} 15. dxe5 {[%emt 0:03:24]} dxe5 {[%emt 0:01:04]} 16. Nd2 {[%emt 0:02:23]} Rd8 {[%emt 0:10:16]} 17. Nc4 {[%emt 0:02:21]} O-O {[%emt 0:09:02]} 18. Be3 {[%emt 0:03:09]} Rfe8 {[%emt 0:03:36]} 19. Qg4 {[%emt 0:04:32]} Bf8 {[%emt 0:02:44]} 20. Bg5 {[%emt 0:04:39]} Rb8 {[%emt 0:03:23]} 21. h4 {[%emt 0:07:26][%cal Bh2h4,Bh4h5][%mdl 32] White is much more active.} Re6 {[%emt 0:04:33] [#]} 22. h5 $1 {[%emt 0:09:47]} h6 {[%emt 0:01:26] [#]} 23. Bh4 {[%emt 0:00:57]} Na7 {[%emt 0:03:06]} (23... a5 $16 24. Rd2 Qa7) 24. Rd3 {[%emt 0:02:42] Weighted Error Value: White=0.05 (flawless) /Black=0.22 (precise)} 1-0

[Event "GER-ch Youth-ODJM 2022"]
[Site "Willingen"]
[Date "2022.06.05"]
[Round "2.15"]
[White "Weigand, Anton"]
[Black "Hofmann, Lorenz"]
[Result "1-0"]
[ECO "B10"]
[WhiteElo "1866"]
[BlackElo "2056"]
[Annotator "TA"]
[PlyCount "93"]
[EventDate "2022.06.05"]
[EventType "swiss"]
[EventRounds "9"]
[EventCountry "GER"]
[SourceTitle "playchess.com"]
[Source "ChessBase"]
[SourceQuality "1"]
[TimeControl "40/4500+30:900+30"]

{[%evp 9,92,0,0,0,0,0,-9,-41,-35,-54,-56,-85,-80,-104,-93,-106,-95,-119,113,114,115,111,79,105,105,104,164,166,129,33,49,8,16,0,0,0,0,0,0,-83,30,0,12,0,1,0,83,88,66,88,222,113,605,587,465,434,703,675,29990,29991,29992,29993,29993,1906,1679,1635,29985,29981,29989,29990,29990,0,5293,0,29990,29986,29986,29987,29995,29996,29996,29997,29998,29999,29999]} 1. e4 {[%emt 0:00:00]} c6 {[%emt 0:00:00]} 2. Nf3 {[%emt 0:00:00]} d5 {[%emt 0:00:00][%cal Bd7d5,Bd5e4][%mdl 32]} 3. d3 {[%emt 0:00:00]} Bg4 {[%emt 0:00:00]} 4. h3 {[%emt 0:00:00]} Bh5 {[%emt 0:00:00]} 5. g4 {[%emt 0:00:00]} Bg6 {[%emt 0:00:00]} 6. h4 {[%emt 0:00:00] aiming for h5. B10: Caro-Kann: 2 d3 and 2 c4.} dxe4 {[%emt 0:00:00] Threatening ...h5.} 7. h5 {[%emt 0:00:00]} Bxh5 {[%emt 0:00:00]} 8. Rxh5 {[%emt 0:00:00] The position is equal.} (8. Nh4 $5 {[%cal Rg4h5]} Bg6 9. Nc3 $11) 8... exf3 {[%emt 0:00:00] [#]} 9. g5 $146 {[%emt 0:00:00] Against Nf6} ({Predecessor:} 9. Qxf3 g6 10. Rh3 Bg7 11. Nc3 Nf6 12. g5 Nd5 13. Ne4 Nd7 14. c3 Qb6 15. d4 {1-0 (33) Savitskiy,S (2421)-Zhigalko,A (2519) Cheliabinsk 2022}) 9... g6 {[%emt 0:00:00]} 10. Rh4 {[%emt 0:00:44]} h5 {[%emt 0:04:51]} ({But not} 10... Qd5 11. Nc3 Qe5+ 12. Be3 $14) 11. Qxf3 {[%emt 0:02:30]} e6 {[%emt 0:02:52]} 12. Nc3 {[%emt 0:01:14]} Ne7 {[%emt 0:13:08]} 13. Rb4 {[%emt 0:07:27]} Qd7 {[%emt 0:05:05]} (13... Nf5 $17 {and life is bright.} 14. Rxb7 Qc8) 14. Ne4 $1 $16 {[%emt 0:02:44][%mdl 1024] White has strong compensation. 0x0.0022fa351869dp-1022s more active pieces.} ({Inferior is} 14. Qf6 Rh7 15. Ne4 Nf5 $17) 14... Nd5 {[%emt 0:01:20]} 15. Rb3 {[%emt 0:01:45] Strongly threatening c4.} Be7 {[%emt 0:01:54]} 16. c4 $1 {[%emt 0:04:12]} Nb6 {[%emt 0:01:43]} (16... Bb4+ $2 17. Rxb4 $1 {[%mdl 512]} Nxb4 18. Nf6+ Ke7 19. Nxd7 $18) 17. Bf4 {[%emt 0:06:15]} Na6 {[%emt 0:06:45]} (17... Qd4 $16) 18. Be5 $18 {[%emt 0:06:44]} Rh7 {[%emt 0:01:47]} 19. Nf6+ {[%emt 0:01:24]} (19. d4 $16) 19... Bxf6 $14 {[%emt 0:00:07]} 20. Bxf6 {[%emt 0:00:05]} Nc5 {[%emt 0:03:16]} 21. Rc3 {[%emt 0:03:43]} Qc7 {[%emt 0:01:41]} 22. O-O-O {[%emt 0:03:48]} Ncd7 {[%emt 0:01:09]} 23. Bd4 {[%emt 0:03:18]} O-O-O {[%emt 0:04:24]} 24. b4 {[%emt 0:04:16]} (24. Ra3 $11) 24... c5 {[%emt 0:06:12]} ({Better is} 24... Qd6 $17 25. Qe3 Qxb4) 25. bxc5 $11 {[%emt 0:01:40]} Nxc5 {[%emt 0:00:15]} 26. Bf6 {[%emt 0:01:40]} Re8 {[%emt 0:02:00]} 27. Bg2 {[%emt 0:03:49]} e5 {[%emt 0:03:56]} (27... Kb8 $11 {keeps the balance.}) 28. d4 $16 {White now steadily converts the win.} exd4 {[%emt 0:02:54]} 29. Bxd4 {[%emt 0:08:35] Really sharp!} Nba4 {[%emt 0:00:59] [#]} (29... Nbd7 $16) 30. Rc2 {[%emt 0:04:35]} (30. Re3 $1 $18 {[%cal Re3e8]} Rxe3 31. fxe3) 30... h4 $2 {[%emt 0:05:00][%mdl 8192] [#]} (30... a6 $16) 31. Bh3+ $1 $18 {[%emt 0:03:37] A strong pair of Bishops.} ({Weaker is} 31. Bxc5 Nxc5 32. Rcd2 Rhh8 $15) 31... Ne6 {[%emt 0:03:52]} 32. Qa3 {[%emt 0:05:28]} Qc6 {[%emt 0:05:00]} (32... Qa5 $142 33. Rb2 Qxg5+ 34. Rbd2 Qa5) 33. Be5 {[%emt 0:03:36] Hoping for f4.} Rd8 {[%emt 0:02:37]} 34. Bxe6+ {[%emt 0:03:18]} Qxe6 {[%emt 0:02:17]} 35. Rxd8+ {[%emt 0:00:16][%mdl 64] Remove Defender} Kxd8 {[%emt 0:00:01]} 36. Bf6+ {[%emt 0:00:24]} (36. Rd2+ $142 Ke8 37. Qxa4+ b5 38. Qxb5+ Ke7 39. Qb7+ Kf8 40. Rd8+ Qe8 41. Qb4+ Kg8 42. Rxe8#) 36... Kc7 {[%emt 0:00:13]} 37. Qxa4 {[%emt 0:00:25] White wants to mate with Rd2.} h3 {[%emt 0:00:27]} 38. Qa5+ {[%emt 0:02:21]} Kc6 {[%emt 0:00:40]} 39. Qb5+ {[%emt 0:01:03]} Kc7 {[%emt 0:00:15]} 40. Qa5+ {[%emt 0:00:29]} (40. Rd2 $142 Qe1+ 41. Kc2 Qe4+ 42. Kb2 b6 43. Be5+ Qxe5+ 44. Qxe5+ Kc8 45. Qe8+ Kb7 46. Rd7+ Ka6 47. Qe5 Rh5 48. Qb5#) 40... Kc6 $1 {[%emt 0:00:06]} 41. Qb5+ {[%emt 0:00:00]} (41. Kb2 $18 b6 42. Qxa7) 41... Kc7 {[%emt 0:00:00]} 42. Be5+ {[%emt 0:00:00] White mates.} Kc8 {[%emt 0:00:00]} 43. Qc5+ {[%emt 0:02:21]} Kd7 {[%emt 0:00:00]} 44. Rd2+ {[%emt 0:01:55]} Ke8 {[%emt 0:00:00]} 45. Qc7 {[%emt 0:01:26][%csl Gc7][%cal Rd2d8]} Qe7 {[%emt 0:00:00]} 46. Qc8+ {[%emt 0:00:11]} Qd8 {[%emt 0:00:00]} 47. Qxd8# {Weighted Error Value: White=0.55/Black=0.89} 1-0

[Event "GER-ch Youth-ODJM 2022"]
[Site "Willingen"]
[Date "2022.06.05"]
[Round "2.16"]
[White "Irkilmez, Yakub"]
[Black "Kruse, Victor"]
[Result "1-0"]
[ECO "D02"]
[WhiteElo "2169"]
[BlackElo "1733"]
[Annotator "TA"]
[PlyCount "69"]
[EventDate "2022.06.05"]
[EventType "swiss"]
[EventRounds "9"]
[EventCountry "GER"]
[SourceTitle "playchess.com"]
[Source "ChessBase"]
[SourceQuality "1"]
[TimeControl "40/4500+30:900+30"]

{[%evp 14,69,14,19,25,-11,-14,-14,-1,-7,-4,-16,-17,-15,-15,-28,-28,-48,0,-17,22,0,0,0,25,25,260,236,338,324,311,314,306,308,315,316,517,493,520,483,477,394,517,493,594,592,639,622,686,694,704,503,1095,1052,1121,1118,1202,1113]} 1. d4 {[%emt 0:00:00]} d5 {[%emt 0:00:00]} 2. Nf3 {[%emt 0:00:00]} Nf6 {[%emt 0:00:00]} 3. g3 {[%emt 0:00:00]} e6 {[%emt 0:00:00]} 4. Bg2 {[%emt 0:00:00]} Be7 {[%emt 0:00:00]} 5. c4 {[%emt 0:00:00]} O-O {[%emt 0:00:00]} 6. O-O {[%emt 0:00:00]} c6 {[%emt 0:00:00]} 7. Nc3 {[%emt 0:00:00]} b6 {[%emt 0:00:00]} 8. b3 {[%emt 0:00:00]} Ba6 {[%emt 0:00:00] E06: Closed Catalan: Early deviations.} 9. cxd5 {[%emt 0:00:00]} cxd5 {[%emt 0:00:00]} 10. Bb2 {[%emt 0:00:00]} Nc6 {[%emt 0:00:00] The position is equal.} 11. Rc1 {[%emt 0:00:00][%cal Oc3d5]} Rc8 {[%emt 0:00:00]} 12. Re1 {[%emt 0:00:00]} Bb4 {[%emt 0:03:19]} 13. a3 {[%emt 0:00:00] [#]} Bxc3 $146 {[%emt 0:00:28]} ({Predecessor:} 13... Bd6 14. e4 dxe4 15. Nxe4 Nxe4 16. Rxe4 Ne7 17. Re1 Bb7 18. Ne5 Rxc1 19. Qxc1 Bxg2 20. Kxg2 {0-1 (55) Doroy Allaney Jia,G (1745)-Marimla,E (2013) Olongapo City 2015}) 14. Rxc3 {[%emt 0:00:00]} Ne4 {[%emt 0:01:51]} 15. Rc2 {[%emt 0:01:28]} Na5 {[%emt 0:05:36]} (15... Qf6 $15) 16. Ne5 {[%emt 0:09:12]} Nd6 {[%emt 0:07:05]} 17. a4 {[%emt 0:23:08]} Rxc2 {[%emt 0:17:15]} 18. Qxc2 {[%emt 0:02:38]} Qc8 {[%emt 0:00:21]} 19. Qb1 {[%emt 0:05:49]} b5 $2 {[%emt 0:10:42] Loses the game.} (19... Re8 $11 {and Black is okay.}) 20. Ba3 $18 {[%emt 0:01:11]} Rd8 {[%emt 0:00:48]} (20... Qd8 $142 21. Rc1 bxa4) 21. Rc1 {[%emt 0:04:05]} Qb7 {[%emt 0:00:20] [#] ...b4 is the strong threat.} 22. Bb4 {[%emt 0:00:26] This bishop pair is nice.} Qb6 {[%emt 0:12:01]} 23. Bxa5 {[%emt 0:00:07]} Qxa5 {[%emt 0:00:00]} 24. Nc6 $1 {[%emt 0:00:06][%csl LRa5,LRa7,LRd8]} Qb6 {[%emt 0:00:10]} (24... Qc7 {was worth a try.} 25. Nxd8 Qxd8 26. axb5 Bxb5) 25. a5 {[%emt 0:00:30]} Qc7 {[%emt 0:00:30]} 26. Nxd8 {[%emt 0:00:30]} Qxd8 {[%emt 0:00:30]} 27. Qa1 {[%emt 0:00:30]} Qb8 {[%emt 0:00:30]} 28. Qc3 {[%emt 0:00:30] White is clearly winning.} b4 {[%emt 0:00:30]} 29. Qc5 {[%emt 0:00:30]} Bxe2 {[%emt 0:00:30]} 30. Qc7 {[%emt 0:00:30]} Qxc7 {[%emt 0:00:30]} 31. Rxc7 {[%emt 0:00:30] Threatens to win with Bf1.} Kf8 {[%emt 0:00:30]} 32. Rxa7 {[%emt 0:00:30]} Ke8 {[%emt 0:00:30]} (32... Nb5 $142) 33. Bf1 {[%emt 0:00:30]} Bd1 {[%emt 0:00:30]} 34. a6 {[%emt 0:00:30]} Bxb3 {[%emt 0:00:30] [#]} 35. Rb7 $1 {[%emt 0:00:30][%mdl 512] Weighted Error Value: White=0.17 (very precise) /Black=0.61} 1-0

[Event "GER-ch Youth-ODJM 2022"]
[Site "Willingen"]
[Date "2022.06.05"]
[Round "2.17"]
[White "Pick, Max"]
[Black "Terhuven, Patrick"]
[Result "0-1"]
[ECO "A46"]
[WhiteElo "1841"]
[BlackElo "2162"]
[Annotator "TA"]
[PlyCount "90"]
[EventDate "2022.06.05"]
[EventType "swiss"]
[EventRounds "9"]
[EventCountry "GER"]
[SourceTitle "playchess.com"]
[Source "ChessBase"]
[SourceQuality "1"]
[TimeControl "40/4500+30:900+30"]

{[%evp 15,90,0,3,-9,-22,-18,3,0,0,-8,-4,-16,-13,-19,-20,-152,-142,-150,-149,-136,-143,-150,-148,-160,-154,-145,-149,-147,-152,-152,-71,-132,-92,-138,-133,-136,-136,-134,-134,-135,-137,-137,-129,-130,-130,-225,-229,-229,-220,-217,-227,-263,-260,-455,-437,-779,-716,-2085,-2252,-2208,-1917,-2454,-2270,-5285,-2297,-2366,-5498,-29974,-29975,-29978,-29979,-29976,-29979,-29999,-29989,-29989,-29989]} 1. d4 {[%emt 0:00:00]} e6 {[%emt 0:00:00]} 2. Nf3 {[%emt 0:00:00]} Nf6 {[%emt 0:00:00]} 3. Bg5 {[%emt 0:00:00]} d5 {[%emt 0:00:00]} 4. Nbd2 {[%emt 0:00:00]} Be7 {[%emt 0:00:00]} 5. e3 {[%emt 0:00:00]} O-O {[%emt 0:00:00]} 6. Bd3 {[%emt 0:00:00]} Nbd7 {[%emt 0:00:00]} 7. O-O {[%emt 0:00:00]} c5 {[%emt 0:00:00]} 8. c3 {[%emt 0:00:00]} b6 {[%emt 0:00:00]} (8... c4 $5 {[%cal Rc4d3]} 9. Bc2 b5 $11) 9. e4 {[%emt 0:00:00] D03: 1 d4 d5 2 Nf3 Nf6 3 Bg5, including Torre Attack with early ...d5.} dxe4 {[%emt 0:00:00]} 10. Nxe4 {[%emt 0:00:00]} cxd4 {[%emt 0:00:00]} 11. Nxd4 {[%emt 0:00:00] Threatens to win with Nc6. The position is equal.} Bb7 {[%emt 0:00:00] Against Nc6} 12. Qc2 {[%emt 0:00:00]} h6 {[%emt 0:00:00]} 13. Bh4 {[%emt 0:01:23]} Nc5 {[%emt 0:00:48][%cal Rf6e4] [#]} 14. Nxc5 $146 {[%emt 0:01:44]} ({Predecessor:} 14. Nxf6+ Bxf6 15. Bxf6 Qxf6 16. f4 Rfd8 17. Rae1 Nxd3 18. Qxd3 Rd5 19. Qg3 g6 20. Re3 {1-0 (37) Sultanbek,Z (1634)-Khomentovskaya,Y (1947) Pavlodar 2016}) 14... bxc5 {[%emt 0:02:25]} 15. Ne2 {[%emt 0:00:53]} (15. Nf3 $11) 15... g5 $1 $17 {[%emt 0:06:06]} 16. Bg3 {[%emt 0:01:47]} Qd5 $36 {[%emt 0:01:02][%csl Gb7][%cal Rd5g2][%mdl 2048] Black is in control.} 17. f3 {[%emt 0:00:39]} c4 {[%emt 0:01:13]} 18. Be4 {[%emt 0:01:39]} Nxe4 {[%emt 0:00:41]} 19. fxe4 {[%emt 0:00:12]} Qxe4 {[%emt 0:00:41]} 20. Qxe4 {[%emt 0:00:29]} Bxe4 {[%emt 0:00:07]} 21. Nd4 {[%emt 0:00:15]} Bd5 {[%emt 0:05:35] This bishop pair is nice.} 22. b4 {[%emt 0:02:34]} a5 {[%emt 0:10:38]} (22... cxb3 $142 23. axb3 a5) 23. a3 {[%emt 0:06:25]} (23. b5 $142) 23... Kg7 {[%emt 0:18:06]} 24. Bc7 {[%emt 0:02:00]} ({White should try} 24. b5) 24... axb4 {[%emt 0:01:56]} 25. axb4 {[%emt 0:00:46]} Rxa1 {[%emt 0:06:32]} 26. Rxa1 {[%emt 0:00:09]} Ra8 {[%emt 0:00:52]} 27. Rxa8 {[%emt 0:00:39]} Bxa8 {[%emt 0:00:03][%mdl 4096] Endgame KBB-KBN} 28. Kf2 {[%emt 0:00:15]} Bd5 {[%emt 0:03:34]} 29. Nc2 {[%emt 0:03:26]} Bf6 {[%emt 0:09:13]} 30. Ne3 {[%emt 0:36:54] [#]} (30. Nd4 $17 {is a better defense.}) 30... Kf8 $1 $19 {[%emt 0:01:34]} ({Stronger than} 30... Bxc3 31. Nxd5 exd5 32. b5 $17) 31. b5 {[%emt 0:02:30]} Ke8 {[%emt 0:00:43]} ({Not} 31... Bxc3 32. Nxd5 exd5 33. b6 $14) 32. Ba5 {[%emt 0:06:47]} Be5 {[%emt 0:06:48]} 33. h3 {[%emt 0:02:56]} f5 {[%emt 0:02:27][%cal Bf7f5,Bf5f4][%mdl 32]} 34. g4 $2 {[%emt 0:01:16] [#]} (34. Nd1) 34... f4 $1 {[%emt 0:01:20]} 35. Nxd5 {[%emt 0:00:13]} (35. Nd1 $142 Kd7 36. Nb2) 35... exd5 {[%emt 0:00:08] KB-KB} 36. b6 {[%emt 0:00:38]} Kd7 {[%emt 0:00:24]} 37. Bb4 {[%emt 0:02:01]} Kc6 {[%emt 0:03:30]} 38. Kf3 {[%emt 0:05:50]} Kxb6 {[%emt 0:01:24] Hoping for ...Kb5.} 39. Bf8 {[%emt 0:00:36]} Bxc3 {[%emt 0:00:51]} 40. Bxh6 {[%emt 0:00:39]} Bf6 {[%emt 0:01:06] aiming for ...c3.} 41. h4 {[%emt 0:18:28]} c3 {[%emt 0:18:17] Black mates.} 42. hxg5 {[%emt 0:00:38]} c2 {[%emt 0:01:41]} 43. gxf6 {[%emt 0:00:11]} c1=Q {[%emt 0:00:10][%cal Rc1f1]} 44. f7 {[%emt 0:00:22]} Qe3+ {[%emt 0:00:23]} 45. Kg2 {[%emt 0:00:05]} f3+ {[%emt 0:00:08] Weighted Error Value: White=0.93/Black=0.05 (flawless)} 0-1